Cogmind - Beta 14 @@@ ROGUE MODE // 2024.08.12 @ 17:42:18 Player: f3-rnm Result: Self-destructed Performance ------------- Evolutions (2) 1000 Regions Visited (3) 600 Robots Destroyed (66) 330 Value Destroyed (1534) 1534 Prototype IDs (4) 80 Alien Tech Used (0) 0 Bonus (138) 138 TOTAL SCORE: 3682 Bonus ------- High Alert Combat Kills 138 Cogmind --------- Core Integrity 400/550 Matter 288/300 Energy 280/280 System Corruption 0% Temperature Cool (0) Movement Core (450) Ox8 Location -8/Materials Parts ------- > --- POWER (1) -------- Cooled Ion Engine > --- PROPULSION (4) --- (None) > --- UTILITY (4) ------ Improved Heat Sink Medium Storage Unit Structural Scanner > --- WEAPON (2) ------- Advanced Beam Cannon Assault Rifle > --- INVENTORY (10) --- Armored Wheel Improved Flight Unit Improved Flight Unit Improved Flight Unit Machine Analyzer Seismic Detector Authchip [R/Combat] Authchip [R/Combat] Authchip [Device] Advanced Beam Cannon Peak State ------------ > --- POWER ------------ Cooled Ion Engine > --- PROPULSION ------- Light Treads Light Treads Light Treads Improved Flight Unit > --- UTILITY ---------- Cooling System Medium Storage Unit Structural Scanner Reactive Plating > --- WEAPON ----------- Backup Laser I Shotgun > --- INVENTORY -------- Cooled Ion Engine Armored Wheel Improved Flight Unit Improved Flight Unit Improved Flight Unit Seismic Detector Authchip [R/Combat] Authchip [R/Combat] Authchip [Device] [Rating: 21] Favorites ----------- Power Cooled Ion Engine Engine Cooled Ion Engine Power Core Light Nuclear Core Propulsion Light Treads Treads Light Treads Flight Unit Improved Flight Unit Utility Cooling System Device Cooling System Storage Medium Storage Unit Protection Light Armor Plating Weapon Beam Cannon Energy Gun Improved Medium Laser Energy Cannon Beam Cannon Ballistic Gun Shotgun Ballistic Cannon Improved Light Cannon Launcher Mini Grenade Launcher Build | -11 -10 -9 -8 ------- Run | Yrd Mat Mat Mat Slots Evolved 4 | . . 2 2 Power . | . . . . Propulsion 2 | . . 1 1 Utility 2 | . . 1 1 Weapon . | . . . . Parts Attached 53 | 6 5 32 10 Power 6 | 1 1 3 1 Engine 5 | 1 1 2 1 Core 1 | . . 1 . Reactor . | . . . . Propulsion 15 | 2 2 10 1 Treads 14 | 2 2 10 . Leg . | . . . . Wheel . | . . . . Hover . | . . . . Flight 1 | . . . 1 Utility 14 | 1 . 7 6 Device 10 | . . 5 5 Storage 2 | 1 . 1 . Processor . | . . . . Hackware . | . . . . Protection 2 | . . 1 1 Artifact . | . . . . Weapon 18 | 2 2 12 2 Energy Gun 5 | . . 5 . Energy Cannon 3 | . . 2 1 Ballistic Gun 6 | 2 2 1 1 Ballistic Cannon 1 | . . 1 . Launcher 3 | . . 3 . Special Weapon . | . . . . Impact Weapon . | . . . . Slashing Weapon . | . . . . Piercing Weapon . | . . . . Special Melee Weapon . | . . . . Unidentified Prototypes 4 | . . 2 2 Parts Lost 12 | . . 7 5 Power 1 | . . 1 . Propulsion 4 | . . 1 3 Utility 4 | . . 2 2 Weapon 3 | . . 3 . Highest Loss Streak 5 | . . 5 3 To Critical Strikes 1 | . . . 1 Average Slot Usage (%) 91 | . 81 95 76 Engine 8 | . 14 7 9 Core 2 | . . 2 . Treads 29 | . 27 32 16 Device 15 | . . 16 15 Storage 10 | . 14 11 9 Protection 3 | . . 2 8 Energy Gun 8 | . . 9 4 Energy Cannon 6 | . . 7 4 Ballistic Gun 5 | . 25 3 9 Peak Build Rating 21 | 6 8 18 21 Average Rating 14 | 4 6 14 17 On Entrance 7 | . 6 8 16 Naked Turns . | . . . . Heaviest Build 36 | 12 12 29 36 Greatest Support 60 | 40 40 60 60 Greatest Overweight (x) 1 | . . . 1 Average Overweight (x) . | . . . . Largest Inventory Capacity 10 | 8 8 10 10 Average Capacity 9 | 7 8 9 10 Most Carried 10 | 2 8 10 10 Average Carried 8 | . 3 9 9 Final Capacity 10 | 8 8 10 10 Final Carried 10 | 2 8 10 10 Class Distribution -------------------- 76% | Scavenger-Mutant 23% | Mutant Dominant Class ---------------- Mutant | -10/Materials Scavenger-Mutant | -9/Materials Scavenger-Mutant | -8/Materials Resources | -11 -10 -9 -8 ----------- Run | Yrd Mat Mat Mat Matter Collected 1183 | 224 55 701 203 Remotely . | . . . . Salvage Created 2256 | . 117 1763 376 Parts 160 | . 13 130 17 Haulers Intercepted 8 | . 1 5 2 Recyclers Shooed 3 | . . 3 . Parts Field Recycled . | . . . . Retrieved Matter . | . . . . Parts Self-Destructed . | . . . . Prevented . | . . . . Kills | -11 -10 -9 -8 ------- Run | Yrd Mat Mat Mat Combat Hostiles Destroyed 43 | . 3 34 6 Guns 23 | . 3 15 5 Cannons 15 | . . 14 1 AOE 4 | . . 4 . Classes Destroyed 10 | . 3 6 1 Worker 3 | . . 3 . Builder 2 | . 1 1 . Hauler 8 | . 1 5 2 Recycler 4 | . . 4 . Operator 1 | . . 1 . Watcher 5 | . . 5 . Swarmer 13 | . 3 10 . Grunt 19 | . . 14 5 Sentry 10 | . . 10 . Hunter 1 | . . . 1 Best Kill Streak 12 | . 4 12 3 Combat Bots Only 6 | . 3 6 3 Max Kills in Single Turn 2 | . 1 2 1 Gunslinging 1 | . . 1 . Exploded 1 | . . 1 . Melee . | . . . . Uniques/NPCs Destroyed . | . . . . Combat | -11 -10 -9 -8 -------- Run | Yrd Mat Mat Mat Hostile Shots Fired 285 | . 24 185 76 Missed 82 | . 9 52 21 Damage Taken 2752 | . 138 1784 830 Core 366 | . 8 208 150 Absorbed by Shields . | . . . . Ignored by Resistances 41 | . . . 41 Core Remaining (%) 81 | 100 96 48 . Volleys Fired 167 | . 12 117 38 Largest 2 | . 2 2 2 Hottest 120 | . 40 120 88 Shots Fired 317 | . 24 217 76 Gun 194 | . 24 110 60 Cannon 110 | . . 94 16 Launcher 13 | . . 13 . Special . | . . . . Kinetic 86 | . 24 24 38 Thermal 218 | . . 180 38 Explosive 13 | . . 13 . Electromagnetic . | . . . . Robot Hit Streak 14 | . 2 14 10 Robot Miss Streak 7 | . 4 7 3 Penetration Max . | . . . . Secondary Targets 4 | . . 3 1 Max Gunslinging Chain 1 | . . 1 1 Shots Hit Robots 177 | . 8 114 55 Core Hits 108 | . 6 76 26 Critical Kills 1 | . . 1 . Critical Parts Destroyed 2 | . . . 2 Critical Strikes 8 | . . 6 2 Burn 5 | . . 5 . Meltdown 1 | . . 1 . Destroy 2 | . . . 2 Melee Attacks . | . . . . Impact . | . . . . Slashing . | . . . . Piercing . | . . . . Sneak Attacks . | . . . . Combat Hostiles . | . . . . Follow-up Attacks . | . . . . Damage Inflicted 3645 | . 149 2662 834 Guns 1763 | . 149 1047 567 Cannons 1156 | . . 889 267 Explosions 726 | . . 726 . Melee . | . . . . Ramming . | . . . . Kinetic 709 | . 149 153 407 Thermal 2210 | . . 1783 427 Explosive 726 | . . 726 . Electromagnetic . | . . . . Impact . | . . . . Slashing . | . . . . Piercing . | . . . . Highest Corruption 6 | . . 6 . Average Corruption 5 | . . 5 . Corruption Purged . | . . . . Corruption Blocked . | . . . . Effects 43 | . . 43 . Message Errors 13 | . . 13 . Matter Fused 11 | . . 11 . Heat Flow Errors 2 | . . 2 . Energy Discharges 8 | . . 8 . Data Loss (minor) 5 | . . 5 . Data Loss (major) 2 | . . 2 . Alerts 1 | . . 1 . Weapon Failures 1 | . . 1 . Overload Shots . | . . . . Overflow Damage 17 | . . 17 . Projectiles . | . . . . Explosions 17 | . . 17 . Melee . | . . . . Knockbacks . | . . . . Impact . | . . . . Kinetic . | . . . . Secondary . | . . . . Self-Inflicted Damage 95 | . . 95 . Shots 4 | . . 4 . Rammed . | . . . . Targets Rammed . | . . . . Kicked . | . . . . Crushed . | . . . . Highest Temperature 230 | . . 230 21 Average Temperature 49 | . . 95 9 Received Heat Transfer 1149 | . 27 708 414 Siege Activations . | . . . . Robots Corrupted . | . . . . Combat Hostiles . | . . . . Parts Fried . | . . . . Impact Corruptions . | . . . . Robots Melted 1 | . . 1 . Combat Hostiles 1 | . . 1 . Parts Melted 9 | . . 9 . Heat Transferred 5402 | . . 4292 1110 Parts Sabotaged . | . . . . Parts Stolen . | . . . . Parts Stripped . | . . . . Power Chain Reactions . | . . . . Alert | -11 -10 -9 -8 ------- Run | Yrd Mat Mat Mat Peak Influence 677 | . 97 677 406 Initial 279 | . . 40 279 Average 357 | . 53 413 291 Maximum Alert Level 2 | . . 2 2 Low Security (%) 24 | 100 100 20 2 Level 1 30 | . . 22 85 Level 2 44 | . . 57 12 Level 3 . | . . . . Level 4 . | . . . . Level 5 . | . . . . High Security . | . . . . Max Security . | . . . . Squads Dispatched 7 | . 1 4 2 Investigation 2 | . . 1 1 Extermination . | . . . . Reinforcement 5 | . 1 3 1 Assault . | . . . . Garrison . | . . . . Intercept . | . . . . Searches Triggered . | . . . . Construction Impeded 1 | . . 1 . Haulers Reinforced . | . . . . Active Scanning Responses . | . . . . Cargo Convoy Interrupts . | . . . . Stealth | -11 -10 -9 -8 --------- Run | Yrd Mat Mat Mat Distress Signals 3 | . . 3 . Communications Jammed . | . . . . Distress Signals . | . . . . Times Spotted 66 | . 6 50 10 Peak Tracking Total 6 | . 4 6 3 Tactical Retreats 2 | . . 2 . Traps | -11 -10 -9 -8 ------- Run | Yrd Mat Mat Mat Traps Triggered 10 | . 3 6 1 Indirectly . | . . . . Trap Hack Attempts . | . . . . Triggered . | . . . . Disarmed . | . . . . Reprogrammed . | . . . . Reused . | . . . . Traps Extracted . | . . . . Installed . | . . . . Triggered . | . . . . Machines | -11 -10 -9 -8 ---------- Run | Yrd Mat Mat Mat Machines Disabled 1 | . . 1 . Max in Single Turn 1 | . . 1 . Machines Repaired . | . . . . Machines Dismantled . | . . . . Machines Sabotaged . | . . . . Overloaded Fab Kills . | . . . . Hacking | -11 -10 -9 -8 --------- Run | Yrd Mat Mat Mat Machines Accessed 7 | . . 7 . Terminals 6 | . . 6 . Fabricators . | . . . . Repair Stations 1 | . . 1 . Recycling Units . | . . . . Scanalyzers . | . . . . Garrison Access . | . . . . Total Hacks 12 | . . 12 . Successful 7 | . . 7 . Failed 5 | . . 5 . Catastrophic . | . . . . Database Lockouts . | . . . . Manual 11 | . . 11 . Terminals 11 | . . 11 . Fabricators . | . . . . Repair Stations 1 | . . 1 . Recycling Units . | . . . . Scanalyzers . | . . . . Garrison Access . | . . . . Terminal Hacks 1 | . . 1 . Branch Access Points 1 | . . 1 . Fabricator Hacks . | . . . . Repair Station Hacks 1 | . . 1 . Refit 1 | . . 1 . Recycling Unit Hacks . | . . . . Scanalyzer . | . . . . Garrison Access Hacks . | . . . . Unauthorized Hacks 5 | . . 5 . Terminals 5 | . . 5 . Skim 5 | . . 5 . Fabricators . | . . . . Repair Stations . | . . . . Recycling Units . | . . . . Scanalyzers . | . . . . Garrison Access . | . . . . Data Cores Recovered . | . . . . Used . | . . . . Hacking Detections 4 | . . 4 . Full Trace Events . | . . . . Feedback Events . | . . . . Feedback Blocked . | . . . . Robot Schematics Acquired . | . . . . Robots Built . | . . . . Authchips . | . . . . Time . | . . . . Total Robot Build Rating . | . . . . Part Schematics Acquired . | . . . . Parts Built . | . . . . Authchips . | . . . . Time . | . . . . Total Part Build Rating . | . . . . Parts Repaired . | . . . . Time . | . . . . Parts Recycled . | . . . . Recycled Matter . | . . . . Retrieved Matter . | . . . . Retrieved Components . | . . . . Parts Scanalyzed . | . . . . Part Schematics Acquired . | . . . . Parts Damaged . | . . . . Bothacking | -11 -10 -9 -8 ------------ Run | Yrd Mat Mat Mat Used RIF Installer . | . . . . Robots Hacked . | . . . . Non-combat . | . . . . Combat . | . . . . Robot Hacks Applied . | . . . . Relay Couplers Released . | . . . . Fabnet Peak Effective % . | . . . . Robots Rewired . | . . . . Allies Hacked . | . . . . Hacks Repelled . | . . . . Allies | -11 -10 -9 -8 -------- Run | Yrd Mat Mat Mat Total Allies . | . . . . Largest Group . | . . . . Highest-Rated Group . | . . . . Highest-Rated Ally . | . . . . Total Orders . | . . . . Ally Attacks . | . . . . Total Damage . | . . . . Kills . | . . . . Allies Corrupted . | . . . . Allies Melted . | . . . . Intel | -11 -10 -9 -8 ------- Run | Yrd Mat Mat Mat Robot Analysis Total . | . . . . Derelict Logs Recovered . | . . . . Drone Launches . | . . . . Drone Recoveries . | . . . . Exploration | -11 -10 -9 -8 ------------- Run | Yrd Mat Mat Mat Turns Passed 3037 | 98 180 2246 513 Spaces Moved 1285 | 58 82 951 194 Core 4 | 4 . . . Treads 1281 | 54 82 951 194 Legs . | . . . . Wheels . | . . . . Hover . | . . . . Flight . | . . . . Fastest Speed 50 | 50 160 160 160 Average Speed 164 | 152 160 160 194 Slowest Speed 240 | 160 160 160 240 Overloaded Moves . | . . . . Propulsion Burnouts . | . . . . Robots Hopped . | . . . . Cave-ins Triggered . | . . . . Exploration Rate (%) 34 | 5 25 92 17 Regions Visited 3 Branch Regions . Pre-discovered Areas . | . . . . Known Exits Taken . | . . . . Unknown Exits Taken 3 | 1 1 1 . Scrap Searched . | . . . . Spaces Dug 13 | . . 13 . Terrain Destroyed 100 | . . 100 . Melee . | . . . . Projectile . | . . . . AOE 100 | . . 100 . Terrain Rammed . | . . . . Walls Destroyed . | . . . . Machines Disabled . | . . . . Actions | -11 -10 -9 -8 --------- Run | Yrd Mat Mat Mat Total 1887 | 65 104 1465 253 Wait 321 | . . 321 . Move 1282 | 57 81 950 194 Hop . | . . . . Pick Up 27 | 2 6 16 3 Fast Attach 29 | 6 5 11 7 Attach 6 | . . 4 2 Detach 1 | . . 1 . Swap 18 | . . 17 1 Drop 36 | . . 28 8 Fire 167 | . 12 117 38 Melee . | . . . . Ram . | . . . . Kick . | . . . . Crush . | . . . . Escape Stasis . | . . . . Rewire . | . . . . Trap . | . . . . Miscellaneous . | . . . . Route ------- -11/Scrapyard -10/Materials -9/Materials (discovered 5 exits: [*Mat x3] / *Min x2) -8/Materials (discovered 1 exit: Sto) History --------- Turn | Location | Event 2 | -11/Scrapyard | Met Revision 17 8 | -11/Scrapyard | Discovered new exit (range 15) 99 | -11/Scrapyard | Entered Materials 217 | -10/Materials | Discovered new exit (range 16) 279 | -10/Materials | Entered another Materials area 279 | -9/Materials | Evolved 2 slots: Propulsion x1, Utility x1 353 | -9/Materials | Build established: Mutant 801 | -9/Materials | Discovered new exit (range 13) 986 | -9/Materials | Build established: Scavenger-Mutant 1068 | -9/Materials | Discovered new exit (range 15) 1291 | -9/Materials | Identified exit to Mines 1688 | -9/Materials | Lost 5 parts (1p1u3w) 1875 | -9/Materials | Discovered new exit (range 9) 1940 | -9/Materials | Core integrity fell below 50% 2018 | -9/Materials | Loaded intel: 20 trap records 2097 | -9/Materials | Learned Storage stockpile data 2133 | -9/Materials | Discovered new exit (range 16) 2167 | -9/Materials | Learned Storage emergency access door positions 2227 | -9/Materials | Loaded intel: 2 repair station locations 2276 | -9/Materials | Learned location of 1 exit from Storage 2343 | -9/Materials | Learned Storage trap positions 2380 | -9/Materials | Learned location of 1 exit from Recycling 2479 | -9/Materials | Learned Recycling recycling unit intel 2525 | -9/Materials | Entered another Materials area 2525 | -8/Materials | Evolved 2 slots: Propulsion x1, Utility x1 2526 | -8/Materials | Identified exit to Storage 2800 | -8/Materials | Lost 3 parts (2n1u) 3038 | -8/Materials | Self-destructed Last Messages --------------- 02836_ Critical hit (Burn: +37). 02840_ G-47 Trooper destroyed. 02846_ Acquired 81 matter. 02855_ Acquired 43 matter. 02863_ G-47 Trooper destroyed. 02871_ Acquired 6 matter. 02951_ K-01 Serf collects debris. 02972_ Dropped Imp. Heat Sink. 02972_ Acquired Unknown Device. 02972_ Identified Transmission Jammer. 02974_ Dropped Transmission Jammer. 02977_ Acquired Imp. Heat Sink. 03012_ A-02 Transporter destroyed. 03015_ Acquired 26 matter. 03020_ K-01 Serf collects debris. 03022_ K-01 Serf destroyed. 03024_ Lgt. Treads destroyed. 03026_ Reactive Plating destroyed. 03026_ G-50 Soldier suffers critical hit (Destroy). 03026_ Destroyed Hvy. Laser. Map ----- +----------------------------------------------------+ | ?????????????????????????????????????????????????? | | ?????????????????????????????????????????????????? | | ?????????????????????????????????????????????????? | | ?????????????????????????????????????????????????? | | ?????????????????????????????????????????????????? | | ?????????????????????????????????????????????????? | | ?????????????????????????????????????????????????? | | ?????????????????????????????????????????????????? | | ?????????????????????????????????????????????????? | | ?????????????????????????????????????????????????? | | ?????????????????????????????????????????????????? | | ?????????????????????????????????????????????????? | | ?????????????????????????????????????????????????? | | ?????????????????????????????????????????????????? | | ?????????????????????????????????????????????????? | | ?????????????????????????????????????????????????? | | ?????????????????????????????????????????????????? | | ?????????????????????????????????????????????????? | | ?????????###########?????????????????????????????? | | ?????????###########?????????????????????????????? | | ?????????## ##?????????????????????????????? | | ?????????## ##?????????????????????????????? | | ?????????## ################ ?????????? | | ??????????##### #################+####?????????? | | ?????????????## = g ????????? | | ?????????????## !!=@ = g ????????? | | ?????????????## !=%!! g% ????????? | | ?????????????## #################+###??????????? | | ?????????????## ############# ##??????????? | | ?????????###### #########??????????????????????? | | ?????????###### # ##??????????????????????? | | ?????????##!! # """#???????????????????????? | | ?????????##!! # """#???????????????????????? | | ?????????##!! / """#???????????????????????? | | ?????????##!! # #???????????????????????? | | ?????????##!! #= * #######?????????????????? | | ?????????##!! ####################???????????? | | ??????######### # """ """ ########???????????? | | ?????? # # """ """ # ##???????????? | | ?????# """ # # """ """ # ##???????????? | | ?????# """ + + # + ???????????? | | ?????# """ # # + """ ##???????????? | | ?????? # # # """ ##???????????? | | ?????# # # # """ ##???????????? | | ?????# # #####+######### ##???????????? | | ?????# "T" ? # ##### ################???????????? | | ?????# ? # ##?## ##???????### ???????????? | | ?????#######?## ##?## ##?????????????????????????? | | ??????######### ##?## #######????????????????????? | | ??????######### ##?##%# """????????????????????? | +----------------------------------------------------+ Best States ------------- Heat Dissipation 60 Energy Generation 14 Energy Capacity 280 Matter Stores 300 Matter Capacity 300 Sight Range 16 Terrain Scan Density 10 Armor Coverage 150 Resistance: KI 20 Evasion (%) 40 Recoil Reduction 3 Authchip Count 4 Item Schematics ----------------- None Robot Schematics ------------------ None Fabricated ------------ Nothing Alien Tech Used ----------------- None Achievements -------------- None Challenges ------------ None Game ------ Seed AngularLobotomyTendrils Manual? 0 Play Time 00:15:14 Cumulative 231.1 hours Start 2024.08.12 @ 17:18:26 End 2024.08.12 @ 17:42:18 Sessions 1 Manual Loads 0 Difficulty Rogue Special Mode None Game No. 242 Rogue 206 Adventurer 36 Explorer 0 Win Type - Total 10 Types 3/0/7/0/0/0/0/0/0 Lore% 60 Gallery% 81 Achievement% 71 Wizard Run 0 Options --------- Layout 0 ASCII 0 Keyboard 0 Movement Mouse Keybinds 0 Fullscreen 1 Font 18/SmallcapsGlow Map View 76x50 Zoom Use 0% Tactical HUD 1 Map Filters NONE Filters NONE Steam 1 RUN: 82e9ca52-4bf3-44ad-b54e-d772bf870d7a